[Event "*** Titled Tuesday Blitz"]
[Site "Chess.com"]
[Date "2020.04.28"]
[Round "8"]
[White "Generalas"]
[Black "Vice64"]
[Result "1-0"]
[WhiteElo "2421"]
[BlackElo "2603"]
[TimeControl "180+1"]
[EndTime "11:36:59 PDT"]
[Termination "Generalas won by checkmate"]

1. Nf3 {[%clk 0:03:00.9]} 1... Nf6 {[%clk 0:02:59.1]} 2. c4 {[%clk 0:03:00.4]}
2... e6 {[%clk 0:02:59.5]} 3. g3 {[%clk 0:03:00.6]} 3... b6 {[%clk 0:02:57.4]}
4. Bg2 {[%clk 0:03:00.4]} 4... Bb7 {[%clk 0:02:58]} 5. O-O {[%clk 0:03:00.5]}
5... Be7 {[%clk 0:02:58.6]} 6. b3 {[%clk 0:03:00.1]} 6... O-O {[%clk 0:02:58.7]}
7. Bb2 {[%clk 0:03:00.2]} 7... d5 {[%clk 0:02:59.2]} 8. d3 {[%clk 0:02:56.3]}
8... dxc4 {[%clk 0:02:59.2]} 9. bxc4 {[%clk 0:02:55.9]} 9... c5 {[%clk
0:02:59.8]} 10. Nc3 {[%clk 0:02:53.1]} 10... Nc6 {[%clk 0:03:00]} 11. Qd2 {[%clk
0:02:35.3]} 11... Qd7 {[%clk 0:02:56.2]} 12. Rad1 {[%clk 0:02:32]} 12... Rfd8
{[%clk 0:02:55.2]} 13. e3 {[%clk 0:02:13.5]} 13... h6 {[%clk 0:02:54.3]} 14. Qe2
{[%clk 0:02:10.3]} 14... Rac8 {[%clk 0:02:49.7]} 15. Rd2 {[%clk 0:02:09.4]}
15... Qc7 {[%clk 0:02:46]} 16. Rfd1 {[%clk 0:02:08.4]} 16... Rd7 {[%clk
0:02:45.6]} 17. h4 {[%clk 0:01:58.6]} 17... Rcd8 {[%clk 0:02:45.1]} 18. Bh3
{[%clk 0:01:53.5]} 18... Nb4 {[%clk 0:02:37.6]} 19. a3 {[%clk 0:01:50.4]} 19...
Bxf3 {[%clk 0:02:29.5]} 20. Qxf3 {[%clk 0:01:49]} 20... Nxd3 {[%clk 0:02:27.9]}
21. Nb5 {[%clk 0:01:44.6]} 21... Qc8 {[%clk 0:02:15.8]} 22. Nxa7 {[%clk
0:01:40]} 22... Rxa7 {[%clk 0:01:32.3]} 23. Rxd3 {[%clk 0:01:39]} 23... Rad7
{[%clk 0:01:28.9]} 24. Rxd7 {[%clk 0:01:32.9]} 24... Rxd7 {[%clk 0:01:29.3]} 25.
Be5 {[%clk 0:01:24.4]} 25... Qd8 {[%clk 0:01:15.6]} 26. Rxd7 {[%clk 0:01:19.4]}
26... Qxd7 {[%clk 0:01:16.5]} 27. Qa8+ {[%clk 0:01:15.5]} 27... Kh7 {[%clk
0:01:16.6]} 28. Bg2 {[%clk 0:01:12]} 28... Ng4 {[%clk 0:01:02.4]} 29. Bc3 {[%clk
0:00:29.9]} 29... Qd1+ {[%clk 0:00:58.8]} 30. Bf1 {[%clk 0:00:29.5]} 30... Qc2
{[%clk 0:00:48.8]} 31. Be1 {[%clk 0:00:26.3]} 31... Ne5 {[%clk 0:00:38.5]} 32.
Kg2 {[%clk 0:00:21]} 32... g6 {[%clk 0:00:31.2]} 33. Qe8 {[%clk 0:00:18.8]}
33... Bf6 {[%clk 0:00:27.2]} 34. h5 {[%clk 0:00:12.3]} 34... Qd1 {[%clk
0:00:23.1]} 35. f4 {[%clk 0:00:11.9]} 35... Qxe1 {[%clk 0:00:09.3]} 36. fxe5
{[%clk 0:00:12]} 36... Qd2+ {[%clk 0:00:07.6]} 37. Kf3 {[%clk 0:00:10.3]} 37...
Bxe5 {[%clk 0:00:06.3]} 38. Qxf7+ {[%clk 0:00:09.8]} 38... Kh8 {[%clk
0:00:06.6]} 39. Qe8+ {[%clk 0:00:08.3]} 39... Kg7 {[%clk 0:00:05.7]} 40. Qxg6+
{[%clk 0:00:08.4]} 40... Kf8 {[%clk 0:00:06.2]} 41. Qxh6+ {[%clk 0:00:08.2]}
41... Ke7 {[%clk 0:00:04.2]} 42. Qh7+ {[%clk 0:00:08.3]} 42... Kd6 {[%clk
0:00:04.5]} 43. Qe4 {[%clk 0:00:08.5]} 43... Qd1+ {[%clk 0:00:04.6]} 44. Kf2
{[%clk 0:00:07]} 44... Qd2+ {[%clk 0:00:03.8]} 45. Be2 {[%clk 0:00:07.2]} 45...
Bxg3+ {[%clk 0:00:04.1]} 46. Kf3 {[%clk 0:00:06.3]} 46... Qxe2+ {[%clk 0:00:05]}
47. Kxe2 {[%clk 0:00:05.7]} 47... Be5 {[%clk 0:00:03.6]} 48. Kf3 {[%clk
0:00:05.9]} 48... Bf6 {[%clk 0:00:04]} 49. Kg4 {[%clk 0:00:06.3]} 49... Be5
{[%clk 0:00:04.7]} 50. Kf3 {[%clk 0:00:07]} 50... Bf6 {[%clk 0:00:05.3]} 51. Kg4
{[%clk 0:00:07.7]} 51... Be5 {[%clk 0:00:06]} 52. Kh3 {[%clk 0:00:08.2]} 52...
Bf6 {[%clk 0:00:06.9]} 53. h6 {[%clk 0:00:08.7]} 53... Be5 {[%clk 0:00:07.8]}
54. h7 {[%clk 0:00:09.3]} 54... Bf6 {[%clk 0:00:08.5]} 55. Qg4 {[%clk
0:00:09.5]} 55... Be5 {[%clk 0:00:08.6]} 56. Qf3 {[%clk 0:00:10]} 56... Bg7
{[%clk 0:00:08.5]} 57. Qh5 {[%clk 0:00:10.8]} 57... Be5 {[%clk 0:00:08.8]} 58.
h8=Q {[%clk 0:00:10.2]} 58... Bxh8 {[%clk 0:00:08.8]} 59. Qxh8 {[%clk
0:00:10.9]} 59... e5 {[%clk 0:00:09.7]} 60. Qe8 {[%clk 0:00:10.9]} 60... e4
{[%clk 0:00:10.4]} 61. Kg4 {[%clk 0:00:11.2]} 61... b5 {[%clk 0:00:10.7]} 62.
cxb5 {[%clk 0:00:10.2]} 62... Kc7 {[%clk 0:00:10.5]} 63. Kf4 {[%clk 0:00:10]}
63... Kb6 {[%clk 0:00:11.4]} 64. Kxe4 {[%clk 0:00:10.4]} 64... Ka5 {[%clk
0:00:12.3]} 65. Kd3 {[%clk 0:00:10.7]} 65... c4+ {[%clk 0:00:13.2]} 66. Kc2
{[%clk 0:00:11.1]} 66... Ka4 {[%clk 0:00:14.1]} 67. Qc8 {[%clk 0:00:10.3]} 67...
Kxa3 {[%clk 0:00:15]} 68. b6 {[%clk 0:00:10.8]} 68... Kb4 {[%clk 0:00:15.2]} 69.
b7 {[%clk 0:00:10.6]} 69... c3 {[%clk 0:00:16.1]} 70. b8=Q+ {[%clk 0:00:10.6]}
70... Ka3 {[%clk 0:00:17]} 71. Qc5+ {[%clk 0:00:09.5]} 71... Ka2 {[%clk
0:00:16.9]} 72. Qca7# {[%clk 0:00:08]} 1-0

[Event "*** Titled Tuesday Blitz"]
[Site "Chess.com"]
[Date "2020.04.28"]
[Round "8"]
[White "AshotParvanyan"]
[Black "Stewie_89"]
[Result "0-1"]
[WhiteElo "2463"]
[BlackElo "2631"]
[TimeControl "180+1"]
[EndTime "11:36:59 PDT"]
[Termination "Stewie_89 won by resignation"]

1. Nf3 {[%clk 0:03:00.9]} 1... d5 {[%clk 0:02:59.5]} 2. d4 {[%clk 0:02:59.9]}
2... Nf6 {[%clk 0:02:59.5]} 3. c4 {[%clk 0:02:59.8]} 3... dxc4 {[%clk 0:03:00]}
4. e3 {[%clk 0:02:58]} 4... e6 {[%clk 0:03:00.3]} 5. Bxc4 {[%clk 0:02:58]} 5...
a6 {[%clk 0:03:00.7]} 6. O-O {[%clk 0:02:56.8]} 6... c5 {[%clk 0:03:00.6]} 7.
Nc3 {[%clk 0:02:49.7]} 7... b5 {[%clk 0:02:50.6]} 8. Be2 {[%clk 0:02:49.6]} 8...
Bb7 {[%clk 0:02:49.6]} 9. b3 {[%clk 0:02:18.1]} 9... Nc6 {[%clk 0:02:44.1]} 10.
Bb2 {[%clk 0:02:17.3]} 10... cxd4 {[%clk 0:02:42.6]} 11. exd4 {[%clk 0:02:17.1]}
11... Be7 {[%clk 0:02:40]} 12. Re1 {[%clk 0:02:14.4]} 12... O-O {[%clk
0:02:39.5]} 13. Bf1 {[%clk 0:02:06.9]} 13... Qb6 {[%clk 0:02:23.5]} 14. Qd3
{[%clk 0:01:34.6]} 14... Rfd8 {[%clk 0:02:16.9]} 15. Rad1 {[%clk 0:01:35]} 15...
Rd7 {[%clk 0:02:03.7]} 16. Qe3 {[%clk 0:00:42]} 16... Rad8 {[%clk 0:01:49.8]}
17. h3 {[%clk 0:00:23.7]} 17... Nd5 {[%clk 0:01:22]} 18. Nxd5 {[%clk 0:00:23.3]}
18... Rxd5 {[%clk 0:01:21.7]} 19. Bd3 {[%clk 0:00:20.1]} 19... Bf6 {[%clk
0:01:15.7]} 20. Be4 {[%clk 0:00:20.3]} 20... R5d7 {[%clk 0:01:12.6]} 21. Ng5
{[%clk 0:00:07.1]} 21... h6 {[%clk 0:00:56.9]} 22. Nf3 {[%clk 0:00:07.1]} 22...
Nb4 {[%clk 0:00:41.4]} 23. Bb1 {[%clk 0:00:06]} 23... Bxf3 {[%clk 0:00:31.4]}
24. Qxf3 {[%clk 0:00:06.9]} 24... Bxd4 {[%clk 0:00:26.8]} 25. Bxd4 {[%clk
0:00:06.5]} 25... Rxd4 {[%clk 0:00:26.3]} 26. Rxd4 {[%clk 0:00:06.5]} 26... Qxd4
{[%clk 0:00:26.3]} 27. a3 {[%clk 0:00:06.2]} 27... Nd5 {[%clk 0:00:25.8]} 28.
Rd1 {[%clk 0:00:05.2]} 28... Qf6 {[%clk 0:00:25.4]} 29. Qxf6 {[%clk 0:00:04.8]}
29... gxf6 {[%clk 0:00:26.3]} 30. Be4 {[%clk 0:00:04.5]} 30... Kf8 {[%clk
0:00:26.3]} 31. Rc1 {[%clk 0:00:04.9]} 31... Ke7 {[%clk 0:00:22.5]} 32. Bxd5
{[%clk 0:00:04.7]} 32... Rxd5 {[%clk 0:00:21.9]} 33. Rc6 {[%clk 0:00:04.8]}
33... Rd6 {[%clk 0:00:21.8]} 34. Rc7+ {[%clk 0:00:05.2]} 34... Kf8 {[%clk
0:00:22]} 35. Ra7 {[%clk 0:00:05.2]} 35... Rd3 {[%clk 0:00:18.4]} 36. Rxa6
{[%clk 0:00:05.4]} 36... Rxb3 {[%clk 0:00:18.9]} 37. g3 {[%clk 0:00:05.8]} 37...
Kg7 {[%clk 0:00:19]} 38. h4 {[%clk 0:00:06]} 38... f5 {[%clk 0:00:19]} 39. Kg2
{[%clk 0:00:06.4]} 39... Kg6 {[%clk 0:00:19.2]} 40. a4 {[%clk 0:00:06.1]} 40...
bxa4 {[%clk 0:00:17.9]} 41. Rxa4 {[%clk 0:00:06.4]} 41... f6 {[%clk 0:00:18.1]}
42. Ra6 {[%clk 0:00:06.5]} 42... e5 {[%clk 0:00:18.2]} 43. Rc6 {[%clk
0:00:06.1]} 43... Rd3 {[%clk 0:00:17.2]} 44. Ra6 {[%clk 0:00:06.1]} 44... Rd4
{[%clk 0:00:15.4]} 45. Rb6 {[%clk 0:00:06.3]} 45... h5 {[%clk 0:00:15.6]} 46.
Ra6 {[%clk 0:00:06.8]} 46... f4 {[%clk 0:00:16]} 47. gxf4 {[%clk 0:00:06.4]}
47... Rxf4 {[%clk 0:00:15.7]} 48. Kg3 {[%clk 0:00:06.8]} 48... Kf5 {[%clk
0:00:16.3]} 49. f3 {[%clk 0:00:07]} 49... Rb4 {[%clk 0:00:15.6]} 50. Ra8 {[%clk
0:00:07.2]} 50... Rb3 {[%clk 0:00:15.9]} 51. Rh8 {[%clk 0:00:07.5]} 51... e4
{[%clk 0:00:14.8]} 52. Rxh5+ {[%clk 0:00:06.7]} 52... Kg6 {[%clk 0:00:15.1]} 53.
Rc5 {[%clk 0:00:06.5]} 53... Rxf3+ {[%clk 0:00:15.6]} 54. Kg2 {[%clk 0:00:06.2]}
54... f5 {[%clk 0:00:15.9]} 55. Ra5 {[%clk 0:00:04.3]} 55... Kh5 {[%clk
0:00:15.6]} 56. Ra8 {[%clk 0:00:04.2]} 56... Kxh4 {[%clk 0:00:15.9]} 57. Rg8
{[%clk 0:00:04.6]} 57... Rf4 {[%clk 0:00:15]} 58. Rh8+ {[%clk 0:00:04.3]} 58...
Kg5 {[%clk 0:00:15]} 59. Rg8+ {[%clk 0:00:04.8]} 59... Kf6 {[%clk 0:00:15.2]}
60. Rf8+ {[%clk 0:00:05.3]} 60... Ke5 {[%clk 0:00:15.4]} 61. Re8+ {[%clk
0:00:05.5]} 61... Kd4 {[%clk 0:00:15.7]} 62. Kg3 {[%clk 0:00:05.2]} 62... Rf3+
{[%clk 0:00:15.8]} 63. Kg2 {[%clk 0:00:05.7]} 63... Ke3 {[%clk 0:00:15.8]} 64.
Rf8 {[%clk 0:00:05.8]} 64... f4 {[%clk 0:00:16]} 65. Re8 {[%clk 0:00:05.5]}
65... Rf2+ {[%clk 0:00:16.1]} 66. Kg1 {[%clk 0:00:05.9]} 66... Rd2 {[%clk
0:00:16.5]} 67. Ra8 {[%clk 0:00:05.1]} 67... f3 {[%clk 0:00:16]} 68. Ra3+ {[%clk
0:00:05.3]} 68... Kf4 {[%clk 0:00:16.2]} 69. Ra8 {[%clk 0:00:05.9]} 69... Rd1+
{[%clk 0:00:16]} 70. Kh2 {[%clk 0:00:05.2]} 70... f2 {[%clk 0:00:15.8]} 71. Rf8+
{[%clk 0:00:04.7]} 71... Ke3 {[%clk 0:00:15.9]} 72. Kg2 {[%clk 0:00:04.9]} 72...
Rg1+ {[%clk 0:00:15.6]} 0-1

[Event "*** Titled Tuesday Blitz"]
[Site "Chess.com"]
[Date "2020.04.28"]
[Round "8"]
[White "DonBroca"]
[Black "ChessicallyInclined"]
[Result "1/2-1/2"]
[WhiteElo "2074"]
[BlackElo "2518"]
[TimeControl "180+1"]
[EndTime "11:36:59 PDT"]
[Termination "Game drawn - insufficient material"]

1. e4 {[%clk 0:03:00.9]} 1... c5 {[%clk 0:02:49.6]} 2. Nf3 {[%clk 0:03:00.9]}
2... Nc6 {[%clk 0:02:48.1]} 3. d4 {[%clk 0:03:01.8]} 3... cxd4 {[%clk
0:02:48.2]} 4. Nxd4 {[%clk 0:03:01.2]} 4... Nf6 {[%clk 0:02:48.3]} 5. Nc3 {[%clk
0:03:00.5]} 5... e5 {[%clk 0:02:48.1]} 6. Ndb5 {[%clk 0:02:58.9]} 6... d6 {[%clk
0:02:43.3]} 7. Bg5 {[%clk 0:02:56.1]} 7... a6 {[%clk 0:02:41.2]} 8. Bxf6 {[%clk
0:02:53.2]} 8... gxf6 {[%clk 0:02:38.6]} 9. Na3 {[%clk 0:02:52.1]} 9... f5
{[%clk 0:02:38.3]} 10. Bd3 {[%clk 0:02:49.8]} 10... Nd4 {[%clk 0:02:33.8]} 11.
Nd5 {[%clk 0:02:46]} 11... b5 {[%clk 0:02:10.2]} 12. c3 {[%clk 0:02:45.1]} 12...
fxe4 {[%clk 0:01:59.6]} 13. Bxe4 {[%clk 0:02:37.7]} 13... Ne6 {[%clk 0:01:51.9]}
14. Qh5 {[%clk 0:02:13.4]} 14... Ra7 {[%clk 0:01:37.7]} 15. Nc2 {[%clk
0:02:12.2]} 15... Qg5 {[%clk 0:01:27.6]} 16. Qxg5 {[%clk 0:02:00.5]} 16... Nxg5
{[%clk 0:01:28.5]} 17. Nf6+ {[%clk 0:02:00]} 17... Ke7 {[%clk 0:01:26.5]} 18.
Nd5+ {[%clk 0:01:59.8]} 18... Kd8 {[%clk 0:01:22.2]} 19. f3 {[%clk 0:01:51]}
19... Nxe4 {[%clk 0:01:14.3]} 20. fxe4 {[%clk 0:01:51.9]} 20... f5 {[%clk
0:01:13.6]} 21. exf5 {[%clk 0:01:42.7]} 21... Bxf5 {[%clk 0:01:01.3]} 22. Nce3
{[%clk 0:01:43.6]} 22... Be6 {[%clk 0:01:01.3]} 23. O-O {[%clk 0:01:38.6]} 23...
Bh6 {[%clk 0:00:59.7]} 24. Rf6 {[%clk 0:01:26.8]} 24... Bxe3+ {[%clk 0:00:56.7]}
25. Nxe3 {[%clk 0:01:26.2]} 25... Ke7 {[%clk 0:00:57.6]} 26. Raf1 {[%clk
0:01:25.2]} 26... Raa8 {[%clk 0:00:56.6]} 27. Rh6 {[%clk 0:01:16]} 27... Rad8
{[%clk 0:00:40.2]} 28. Nf5+ {[%clk 0:01:03.6]} 28... Bxf5 {[%clk 0:00:39]} 29.
Rxf5 {[%clk 0:01:04.5]} 29... Rd7 {[%clk 0:00:37.1]} 30. Rff6 {[%clk 0:00:59.8]}
30... Rhd8 {[%clk 0:00:30]} 31. h4 {[%clk 0:00:55.1]} 31... d5 {[%clk
0:00:26.2]} 32. Re6+ {[%clk 0:00:55]} 32... Kf7 {[%clk 0:00:26.5]} 33. Rxe5
{[%clk 0:00:54.6]} 33... Kg7 {[%clk 0:00:27]} 34. Rhe6 {[%clk 0:00:51.3]} 34...
d4 {[%clk 0:00:26.2]} 35. cxd4 {[%clk 0:00:48.6]} 35... Rxd4 {[%clk 0:00:27.1]}
36. Rxa6 {[%clk 0:00:47.7]} 36... Rxh4 {[%clk 0:00:26.6]} 37. Re7+ {[%clk
0:00:46.9]} 37... Kh8 {[%clk 0:00:26.2]} 38. Rae6 {[%clk 0:00:39.9]} 38... b4
{[%clk 0:00:15.7]} 39. Re8+ {[%clk 0:00:38.6]} 39... Rxe8 {[%clk 0:00:15.7]} 40.
Rxe8+ {[%clk 0:00:39]} 40... Kg7 {[%clk 0:00:16.6]} 41. Re6 {[%clk 0:00:38.8]}
41... Rd4 {[%clk 0:00:15.9]} 42. Rb6 {[%clk 0:00:37.5]} 42... h5 {[%clk
0:00:13.7]} 43. Kh2 {[%clk 0:00:36.4]} 43... h4 {[%clk 0:00:14.1]} 44. Kh3
{[%clk 0:00:35.8]} 44... Kh7 {[%clk 0:00:14.4]} 45. a4 {[%clk 0:00:31.9]} 45...
bxa3 {[%clk 0:00:14]} 46. bxa3 {[%clk 0:00:32.4]} 46... Rd3+ {[%clk 0:00:14.2]}
47. Kxh4 {[%clk 0:00:31.9]} 47... Rxa3 {[%clk 0:00:15.1]} 48. g4 {[%clk
0:00:31.1]} 48... Ra5 {[%clk 0:00:13.6]} 49. g5 {[%clk 0:00:29.6]} 49... Kg7
{[%clk 0:00:14]} 50. Kh5 {[%clk 0:00:29.6]} 50... Ra8 {[%clk 0:00:13.6]} 51.
Rb7+ {[%clk 0:00:30.5]} 51... Kg8 {[%clk 0:00:14.1]} 52. Kh6 {[%clk 0:00:27.6]}
52... Ra6+ {[%clk 0:00:13.3]} 53. g6 {[%clk 0:00:27.2]} 53... Ra8 {[%clk
0:00:14]} 54. Rg7+ {[%clk 0:00:26.9]} 54... Kh8 {[%clk 0:00:14]} 55. Rh7+ {[%clk
0:00:27.1]} 55... Kg8 {[%clk 0:00:14]} 56. Rd7 {[%clk 0:00:22.8]} 56... Rb8
{[%clk 0:00:11]} 57. Rc7 {[%clk 0:00:22.2]} 57... Ra8 {[%clk 0:00:11.4]} 58.
Rg7+ {[%clk 0:00:19.2]} 58... Kh8 {[%clk 0:00:11.2]} 59. Re7 {[%clk 0:00:17.3]}
59... Kg8 {[%clk 0:00:11.7]} 60. Kg5 {[%clk 0:00:16.9]} 60... Ra5+ {[%clk
0:00:11]} 61. Kf6 {[%clk 0:00:17.2]} 61... Ra8 {[%clk 0:00:11.8]} 62. Rg7+
{[%clk 0:00:14.1]} 62... Kh8 {[%clk 0:00:12.1]} 63. Rh7+ {[%clk 0:00:14]} 63...
Kg8 {[%clk 0:00:12.7]} 64. Re7 {[%clk 0:00:12.2]} 64... Ra6+ {[%clk 0:00:12]}
65. Kg5 {[%clk 0:00:12.3]} 65... Ra8 {[%clk 0:00:12.1]} 66. Kh6 {[%clk
0:00:11.3]} 66... Rb8 {[%clk 0:00:12.6]} 67. Rd7 {[%clk 0:00:11.2]} 67... Ra8
{[%clk 0:00:12.5]} 68. g7 {[%clk 0:00:08.4]} 68... Ra6+ {[%clk 0:00:12.2]} 69.
Kg5 {[%clk 0:00:08.4]} 69... Kh7 {[%clk 0:00:12.6]} 70. Kf5 {[%clk 0:00:08.2]}
70... Rb6 {[%clk 0:00:09.4]} 71. Ke5 {[%clk 0:00:07.9]} 71... Rg6 {[%clk
0:00:09.3]} 72. Rd8 {[%clk 0:00:06]} 72... Rxg7 {[%clk 0:00:08.4]} 73. Re8
{[%clk 0:00:06.4]} 73... Kg6 {[%clk 0:00:08.4]} 74. Re6+ {[%clk 0:00:05.5]}
74... Kg5 {[%clk 0:00:08.9]} 75. Rf6 {[%clk 0:00:05.9]} 75... Re7+ {[%clk
0:00:08.9]} 76. Re6 {[%clk 0:00:06.4]} 76... Rxe6+ {[%clk 0:00:09.4]} 77. Kxe6
{[%clk 0:00:07.3]} 1/2-1/2

[Event "*** Titled Tuesday Blitz"]
[Site "Chess.com"]
[Date "2020.04.28"]
[Round "8"]
[White "Mr_Sinigami"]
[Black "kakakz"]
[Result "1/2-1/2"]
[WhiteElo "2542"]
[BlackElo "2417"]
[TimeControl "180+1"]
[EndTime "11:37:00 PDT"]
[Termination "Game drawn by repetition"]

1. Nf3 {[%clk 0:03:00.9]} 1... Nf6 {[%clk 0:03:00.1]} 2. c4 {[%clk 0:02:59.2]}
2... g6 {[%clk 0:03:00.4]} 3. Nc3 {[%clk 0:02:57.5]} 3... Bg7 {[%clk 0:03:00.9]}
4. e4 {[%clk 0:02:56.8]} 4... d6 {[%clk 0:03:01.3]} 5. d4 {[%clk 0:02:50.5]}
5... O-O {[%clk 0:03:01.5]} 6. Be2 {[%clk 0:02:49.8]} 6... e5 {[%clk 0:03:01.7]}
7. O-O {[%clk 0:02:50.1]} 7... Nbd7 {[%clk 0:03:02]} 8. Qc2 {[%clk 0:02:48.7]}
8... Re8 {[%clk 0:02:51.5]} 9. d5 {[%clk 0:02:48.7]} 9... Nc5 {[%clk 0:02:45.9]}
10. Bd2 {[%clk 0:02:48.5]} 10... a5 {[%clk 0:02:44.9]} 11. b3 {[%clk 0:02:48.6]}
11... Nh5 {[%clk 0:02:36.4]} 12. g3 {[%clk 0:02:45.9]} 12... f5 {[%clk
0:02:33.2]} 13. Nh4 {[%clk 0:02:06.9]} 13... f4 {[%clk 0:01:57.4]} 14. a3 {[%clk
0:01:47.1]} 14... Bh3 {[%clk 0:01:55.2]} 15. Rfe1 {[%clk 0:01:36.8]} 15... Rf8
{[%clk 0:01:27.6]} 16. Bxh5 {[%clk 0:01:23.7]} 16... gxh5 {[%clk 0:01:24.9]} 17.
b4 {[%clk 0:01:24.1]} 17... Nd7 {[%clk 0:01:21.7]} 18. Qd3 {[%clk 0:00:57.9]}
18... Qf6 {[%clk 0:01:13]} 19. f3 {[%clk 0:00:41]} 19... Bh6 {[%clk 0:00:52.3]}
20. Kh1 {[%clk 0:00:33.5]} 20... Kh8 {[%clk 0:00:45.3]} 21. Nb5 {[%clk
0:00:29.9]} 21... Rac8 {[%clk 0:00:44.4]} 22. Rg1 {[%clk 0:00:16.9]} 22... Rg8
{[%clk 0:00:36.6]} 23. Na7 {[%clk 0:00:16.5]} 23... Rcf8 {[%clk 0:00:34.7]} 24.
Nb5 {[%clk 0:00:16.3]} 24... Rc8 {[%clk 0:00:28]} 25. Na7 {[%clk 0:00:16.2]}
25... Ra8 {[%clk 0:00:18.6]} 26. Nb5 {[%clk 0:00:16.1]} 26... axb4 {[%clk
0:00:18]} 27. Nxc7 {[%clk 0:00:09.4]} 27... Rac8 {[%clk 0:00:13.3]} 28. Ne6
{[%clk 0:00:05.7]} 28... Nc5 {[%clk 0:00:11.5]} 29. Nxc5 {[%clk 0:00:04.8]}
29... Rxc5 {[%clk 0:00:11]} 30. axb4 {[%clk 0:00:05.7]} 30... Rcc8 {[%clk
0:00:11.4]} 31. c5 {[%clk 0:00:06]} 31... Bg5 {[%clk 0:00:10.3]} 32. cxd6 {[%clk
0:00:04.7]} 32... Bxh4 {[%clk 0:00:10]} 33. gxh4 {[%clk 0:00:04.8]} 33... Qxd6
{[%clk 0:00:10]} 34. Bc3 {[%clk 0:00:02.6]} 34... Rce8 {[%clk 0:00:08.4]} 35.
Bb2 {[%clk 0:00:02.7]} 35... Qxb4 {[%clk 0:00:06.7]} 36. Qc3 {[%clk 0:00:02.9]}
36... Qxc3 {[%clk 0:00:06.5]} 37. Bxc3 {[%clk 0:00:03.8]} 37... Rg6 {[%clk
0:00:06.2]} 38. Rxg6 {[%clk 0:00:02.9]} 38... hxg6 {[%clk 0:00:06.5]} 39. Rb1
{[%clk 0:00:03.8]} 39... Re7 {[%clk 0:00:06.4]} 40. Rb6 {[%clk 0:00:03.5]} 40...
Kg7 {[%clk 0:00:06.4]} 41. Kg1 {[%clk 0:00:04]} 41... Kf7 {[%clk 0:00:06]} 42.
Kf2 {[%clk 0:00:04.4]} 42... Bc8 {[%clk 0:00:06.3]} 43. Bb4 {[%clk 0:00:04.6]}
43... Rc7 {[%clk 0:00:06.3]} 44. Bd6 {[%clk 0:00:04.9]} 44... Rc2+ {[%clk
0:00:06.2]} 45. Kg1 {[%clk 0:00:05.3]} 45... Rc1+ {[%clk 0:00:06.4]} 46. Kf2
{[%clk 0:00:05.5]} 46... Rc2+ {[%clk 0:00:07]} 47. Ke1 {[%clk 0:00:04.8]} 47...
Rxh2 {[%clk 0:00:07]} 48. Bxe5 {[%clk 0:00:05.1]} 48... Rxh4 {[%clk 0:00:06.8]}
49. Rf6+ {[%clk 0:00:04.2]} 49... Ke7 {[%clk 0:00:06.9]} 50. Rxf4 {[%clk
0:00:03.8]} 50... Rxf4 {[%clk 0:00:06.3]} 51. Bxf4 {[%clk 0:00:04.7]} 51... Bd7
{[%clk 0:00:06.5]} 52. Be3 {[%clk 0:00:04.2]} 52... Kf6 {[%clk 0:00:06.7]} 53.
Kf2 {[%clk 0:00:04]} 53... g5 {[%clk 0:00:06.8]} 54. Kg3 {[%clk 0:00:04.2]}
54... h4+ {[%clk 0:00:06.7]} 55. Kg2 {[%clk 0:00:03.9]} 55... Bc8 {[%clk
0:00:07.1]} 56. Bd4+ {[%clk 0:00:04.3]} 56... Kg6 {[%clk 0:00:06.5]} 57. Kf2
{[%clk 0:00:04.5]} 57... Bd7 {[%clk 0:00:06.5]} 58. Kg2 {[%clk 0:00:04.7]} 58...
Bc8 {[%clk 0:00:06.8]} 59. Kf2 {[%clk 0:00:05.1]} 59... Bd7 {[%clk 0:00:07.1]}
60. Kg2 {[%clk 0:00:05.4]} 60... Bc8 {[%clk 0:00:07.5]} 1/2-1/2